fUST/lending_fUST_20240510
["ID","MTS","AMOUNT","RATE_DAILY","PERIOD"]
[326754139,1715309637889,154.7215013,9.999e-05,2]
[326754147,1715310384907,24900.0,0.00019787,2]
[326754148,1715310448568,231.977667,0.00019862,2]
[326754197,1715310633008,-305.84891193,0.00020021,2]
[326754198,1715310633020,-2259.49496037,0.00020021,2]
[326754199,1715310633091,-155.63834254,0.00020611,2]
[326754200,1715310633101,-189.33595798,0.00020711,2]
[326754201,1715310633110,-893.76474669,0.00020912,2]
[326754202,1715310633118,-309.08907607,0.00020913,2]
[326754203,1715310633127,-36565.56957581,0.00020913,2]
[326754204,1715310633136,-171.82566393,0.00021618,2]
[326754205,1715310633145,-770.482055,0.00021718,2]
[326754206,1715310633154,-225.0,0.00021918,2]
[326754207,1715310633163,-242.31319519,0.00022,2]
[326754208,1715310633172,-167.10326178,0.00025,2]
[326754209,1715310633181,-400.10978683,0.00025,2]
[326754210,1715310633190,-477.1,0.0002585,3]
[326754211,1715310633199,-154.16851108,0.00026629,2]
[326754212,1715310633209,-186.85286601,0.00027,2]
[326754213,1715310633218,-154.16851108,0.00027977,2]
[326754214,1715310633227,-322.40707448,0.00028,2]
[326754215,1715310633236,-500.4565557,0.00028,7]
[326754216,1715310633245,-231.977667,0.00029793,2]
[326754217,1715310633253,-477.1,0.00030225,5]
[326754218,1715310633262,-154.16851108,0.00033042,7]
[326754219,1715310633271,-477.1,0.00034599,7]
[326754220,1715310633287,-198.97369716,0.00034639,3]
[326754221,1715310633296,-1006.03131159,0.00034856,2]
[326754222,1715310633304,-7267.45,0.00034977,3]
[326754223,1715310633313,-6056.21,0.00034977,3]
[326754225,1715310633322,-5046.84,0.00034977,3]
[326754226,1715310633334,-500.0,0.0003498,7]
[326754227,1715310633343,-500.0,0.0003498,7]
[326754228,1715310633352,-500.0,0.0003498,7]
[326754230,1715310633361,-500.0,0.0003498,7]
[326754232,1715310633371,-500.0,0.0003498,7]
[326754234,1715310633380,-500.0,0.0003498,7]
[326754236,1715310633389,-500.0,0.0003498,7]
[326754238,1715310633398,-500.0,0.0003498,7]
[326754240,1715310633407,-500.0,0.0003498,7]
[326754242,1715310633416,-500.0,0.0003498,7]
[326754244,1715310633425,-500.0,0.0003498,7]
[326754246,1715310633434,-500.0,0.0003498,7]
[326754248,1715310633443,-500.0,0.0003498,7]
[326754250,1715310633452,-500.0,0.0003498,7]
[326754252,1715310633464,-500.0,0.0003498,7]
[326754254,1715310633475,-287.14093161,0.0003498,7]
[326754303,1715310638741,-212.85906839,0.0003498,7]
[326754306,1715310638751,-500.0,0.0003498,7]
[326754308,1715310638761,-500.0,0.0003498,7]
[326754311,1715310638771,-500.0,0.0003498,7]
[326754313,1715310638780,-145.28209161,0.0003498,7]
[326754319,1715310641322,-110.25124272,0.0003498,7]
[326754347,1715310731708,189.33595798,0.00019921,2]
[326754353,1715311271651,10972.0540468,9.999e-05,2]
[326754354,1715311273694,-150.0,0.00020912,2]
[326754357,1715311350469,158.22736457,9.999e-05,2]
[326754359,1715311410957,214.673314,0.00019912,2]
[326754362,1715311438097,24890.0,0.0001991,2]
[326754368,1715311507533,527.71870107,9.999e-05,2]
[326754373,1715311532611,1400.60904381,9.999e-05,2]
[326754379,1715311555290,174.164322,0.0001589,2]
[326754389,1715311715719,154.7215013,0.00018,2]
[326754392,1715311796952,150.0,0.000189,2]
[326754414,1715311832921,-1716.72807354,0.00020163,2]
[326754415,1715311832935,-3000.0,0.00020164,2]
[326754418,1715311832949,-674.17179809,0.0002081,2]
[326754420,1715311832965,-1558.94506613,0.00020905,2]
[326754423,1715311832979,-62525.03509015,0.00020905,2]
[326754425,1715311832993,-500.0,0.00020905,2]
[326754428,1715311833009,-500.0,0.00020905,2]
[326754431,1715311833023,-500.0,0.00020905,2]
[326754433,1715311833037,-500.0,0.00020905,2]
[326754435,1715311833052,-500.0,0.00020905,2]
[326754438,1715311833066,-500.0,0.00020905,2]
[326754440,1715311833080,-500.0,0.00020905,2]
[326754452,1715311833179,-500.0,0.00020905,2]
[326754454,1715311833192,-500.0,0.00020905,2]
[326754456,1715311833201,-59315.98983434,0.00020906,2]
[326754458,1715311833210,-154.84423191,0.00020907,2]
[326754460,1715311833219,-351.60918481,0.00020909,2]
[326754462,1715311833228,-1404.72080091,0.00020909,2]
[326754464,1715311833238,-158.52026334,0.0002091,2]
[326754466,1715311833247,-56.48477514,0.00020912,2]
[326754468,1715311833256,-1887.67805184,0.00020913,2]
[326754470,1715311833265,-225.0,0.00021918,2]
[326754472,1715311833274,-167.372145,0.00021918,2]
[326754474,1715311833284,-225.0,0.00021918,2]
[326754476,1715311833293,-167.372145,0.00022559,2]
[326754478,1715311833303,-714.97924015,0.00023,2]
[326754480,1715311833312,-167.372145,0.000232,2]
[326754482,1715311833321,-167.372145,0.00023841,2]
[326754484,1715311833331,-167.372145,0.00024482,2]
[326754485,1715311833340,-167.10326178,0.00025,2]
[326754487,1715311833349,-186.85286601,0.00027,2]
[326754488,1715311833358,-154.16851108,0.00027583,2]
[326754489,1715311833367,-357.8,0.00028167,5]
[326754490,1715311833377,-154.16851108,0.00030271,7]
[326754491,1715311833387,-154.16851108,0.00032455,7]
[326754492,1715311833396,-357.8,0.00033078,7]
[326754493,1715311833406,-1668.034838,0.00034977,2]
[326754494,1715311833415,-1668.034838,0.00034977,2]
[326754495,1715311833424,-151.0,0.00034977,2]
[326754496,1715311833433,-151.0,0.00034977,2]
[326754497,1715311833443,-151.0,0.00034977,2]
[326754498,1715311833452,-224.689473,0.00034977,2]
[326754499,1715311833462,-502.209865,0.00034977,2]
[326754500,1715311833471,-502.209865,0.00034977,2]
[326754501,1715311833480,-151.0,0.00034977,2]
[326754502,1715311833489,-309.294934,0.00034977,2]
[326754503,1715311833498,-309.294934,0.00034977,2]
[326754504,1715311833508,-244.001732,0.00034977,2]
[326754505,1715311833519,-151.0,0.00034977,2]
[326754506,1715311833529,-244.001732,0.00034977,2]
[326754507,1715311833538,-1057.414048,0.00034977,2]
[326754508,1715311833547,-1057.414048,0.00034977,2]
[326754509,1715311833556,-788.512884,0.00034977,2]
[326754510,1715311833565,-788.512884,0.00034977,2]
[326754511,1715311833574,-151.0,0.00034977,2]
[326754512,1715311833583,-178.9989,0.00034977,2]
[326754513,1715311833592,-178.9989,0.00034977,2]
[326754514,1715311833602,-151.0,0.00034977,2]
[326754515,1715311833611,-151.0,0.00034977,2]
[326754516,1715311833621,-151.0,0.00034977,2]
[326754517,1715311833630,-520.9534,0.00034977,2]
[326754518,1715311833639,-520.9534,0.00034977,2]
[326754519,1715311833647,-151.0,0.00034977,2]
[326754520,1715311833656,-702.861192,0.00034977,2]
[326754521,1715311833665,-702.861192,0.00034977,2]
[326754522,1715311833674,-151.0,0.00034977,2]
[326754523,1715311833683,-151.0,0.00034977,2]
[326754524,1715311833692,-1697.203922,0.00034977,2]
[326754525,1715311833701,-1697.203922,0.00034977,2]
[326754526,1715311833711,-1697.203922,0.00034977,2]
[326754527,1715311833719,-1697.203922,0.00034977,2]
[326754528,1715311833728,-151.0,0.00034977,2]
[326754529,1715311833737,-151.702634,0.00034977,2]
[326754530,1715311833747,-976.59232,0.00034977,2]
[326754531,1715311833756,-976.59232,0.00034977,2]
[326754532,1715311833765,-2305.934886,0.00034977,2]
[326754533,1715311833774,-2305.934886,0.00034977,2]
[326754534,1715311833784,-976.59232,0.00034977,2]
[326754535,1715311833793,-976.59232,0.00034977,2]
[326754536,1715311833803,-1413.72078132,0.00034977,2]
[326754546,1715311838862,-500.0,0.00020905,2]
[326754548,1715311838872,-202.11748921,0.00020905,2]
[326754550,1715311838885,-297.88251079,0.00020905,2]
[326754552,1715311838895,-500.0,0.00020905,2]
[326754554,1715311838905,-432.27322609,0.00020905,2]
[326754619,1715311841751,-67.72677391,0.00020905,2]
[326754621,1715311841761,-620.140176,0.00020905,2]
[326754623,1715311841771,-500.0,0.00020905,2]
[326754625,1715311841783,-500.0,0.00020905,2]
[326754627,1715311841793,-500.0,0.00020905,2]
[326754628,1715311841803,-500.0,0.00020905,2]
[326754630,1715311841819,-500.0,0.00020905,2]
[326754632,1715311841829,-500.0,0.00020905,2]
[326754634,1715311841840,-500.0,0.00020905,2]
[326754636,1715311841851,-500.0,0.00020905,2]
[326754638,1715311841861,-500.0,0.00020905,2]
[326754640,1715311841871,-500.0,0.00020905,2]
[326754642,1715311841881,-500.0,0.00020905,2]
[326754644,1715311841892,-500.0,0.00020905,2]
[326754646,1715311841903,-500.0,0.00020905,2]
[326754648,1715311841913,-500.0,0.00020905,2]
[326754650,1715311841924,-500.0,0.00020905,2]
[326754652,1715311841936,-500.0,0.00020905,2]
[326754654,1715311841947,-500.0,0.00020905,2]
[326754656,1715311841958,-500.0,0.00020905,2]
[326754658,1715311841968,-500.0,0.00020905,2]
[326754660,1715311841978,-500.0,0.00020905,2]
[326754662,1715311841988,-500.0,0.00020905,2]
[326754664,1715311841998,-500.0,0.00020905,2]
[326754666,1715311842008,-500.0,0.00020905,2]
[326754668,1715311842019,-500.0,0.00020905,2]
[326754670,1715311842029,-500.0,0.00020905,2]
[326754672,1715311842042,-892.21410468,0.00034977,2]
[326754674,1715311842052,-2305.934886,0.00034977,2]
[326754676,1715311842063,-284.194522,0.00034977,2]
[326754678,1715311842072,-284.194522,0.00034977,2]
[326754680,1715311842082,-284.194522,0.00034977,2]
[326754682,1715311842092,-284.194522,0.00034977,2]
[326754684,1715311842102,-151.0,0.00034977,2]
[326754687,1715311842111,-282.68649,0.00034977,2]
[326754689,1715311842121,-151.0,0.00034977,2]
[326754691,1715311842131,-151.0,0.00034977,2]
[326754692,1715311842140,-151.0,0.00034977,2]
[326754694,1715311842149,-151.0,0.00034977,2]
[326754696,1715311842159,-151.0,0.00034977,2]
[326754698,1715311842168,-151.0,0.00034977,2]
[326754701,1715311842178,-151.0,0.00034977,2]
[326754703,1715311842187,-214.227066,0.00034977,2]
[326754705,1715311842196,-20124.85587889,0.00034984,15]
[326754750,1715312012352,179.589514,0.0001589,2]
[326754751,1715312031678,154.7215013,9.999e-05,2]
[326754756,1715312203748,10000.0,0.0002,2]
[326754757,1715312217664,10000.0,0.0002,2]
[326754758,1715312226353,8784.25567021,0.0002,2]
[326754760,1715312251106,10000.0,0.00018,2]
[326754762,1715312327051,6000.0,0.00018,2]
[326754763,1715312459619,154.7215013,9.999e-05,2]
[326754764,1715312522328,564.55666031,9.999e-05,2]
[326754765,1715312706687,154.7215013,9.999e-05,2]
[326754766,1715312921965,744.79112153,0.000138,2]
[326754767,1715312955165,-2104.72344677,0.00019999,2]
[326754768,1715312955184,-1215.74432979,0.0002,2]
[326754769,1715312955207,-3499.21871324,0.00020792,2]
[326754770,1715312988647,284.55118921,9.999e-05,2]
[326754777,1715313032647,-273.94454083,0.0002079,2]
[326754778,1715313032657,-18159.36657535,0.0002079,2]
[326754779,1715313032667,-589.90032339,0.00020793,2]
[326754780,1715313032676,-718.7949124,0.0002089,2]
[326754781,1715313032685,-498.01903338,0.0002089,2]
[326754782,1715313032694,-756.4075961,0.00020891,2]
[326754783,1715313032703,-587.78661984,0.00020896,2]
[326754784,1715313032712,-1216.41049314,0.00020896,2]
[326754785,1715313032722,-1216.41049314,0.00020896,2]
[326754786,1715313032732,-1216.41049314,0.00020896,2]
[326754787,1715313032741,-1216.41049314,0.00020896,2]
[326754788,1715313032750,-1216.41049314,0.00020896,2]
[326754789,1715313032759,-1216.41049314,0.00020896,2]
[326754790,1715313032768,-1216.41049314,0.00020896,2]
[326754791,1715313032850,-1216.41049314,0.00020896,2]
[326754792,1715313032859,-1216.41049314,0.00020896,2]
[326754793,1715313032868,-1216.41049314,0.00020896,2]
[326754794,1715313032878,-1216.41049314,0.00020896,2]
[326754795,1715313032887,-1216.41049314,0.00020896,2]
[326754796,1715313032896,-1216.41049314,0.00020896,2]
[326754797,1715313032905,-1216.41049314,0.00020896,2]
[326754798,1715313032915,-1216.41049314,0.00020896,2]
[326754799,1715313032924,-1216.41049314,0.00020896,2]
[326754800,1715313032934,-1216.41049314,0.00020896,2]
[326754801,1715313032943,-1216.41049314,0.00020896,2]
[326754802,1715313032952,-1216.41049314,0.00020896,2]
[326754803,1715313032961,-1216.41049314,0.00020896,2]
[326754804,1715313032970,-1216.41049314,0.00020896,2]
[326754805,1715313032979,-1216.41049314,0.00020896,2]
[326754806,1715313032988,-1216.41049314,0.00020896,2]
[326754807,1715313032997,-1216.41049314,0.00020896,2]
[326754808,1715313033006,-1216.41049314,0.00020896,2]
[326754809,1715313033016,-1216.41049314,0.00020896,2]
[326754810,1715313033025,-1216.41049314,0.00020896,2]
[326754811,1715313033034,-1216.41049314,0.00020896,2]
[326754812,1715313033043,-1216.41049314,0.00020896,2]
[326754813,1715313033052,-1216.41049314,0.00020896,2]
[326754814,1715313033061,-1216.41049314,0.00020896,2]
[326754815,1715313033070,-1216.41049314,0.00020896,2]
[326754816,1715313033079,-1216.41049314,0.00020896,2]
[326754817,1715313033088,-1216.41049314,0.00020896,2]
[326754818,1715313033097,-1216.41049314,0.00020896,2]
[326754819,1715313033106,-1216.41049314,0.00020896,2]
[326754820,1715313033116,-1216.41049314,0.00020896,2]
[326754821,1715313033125,-1216.41049314,0.00020896,2]
[326754822,1715313033134,-1216.41049314,0.00020896,2]
[326754823,1715313033143,-1216.41049314,0.00020896,2]
[326754824,1715313033153,-1216.41049314,0.00020896,2]
[326754825,1715313033165,-1216.41049314,0.00020896,2]
[326754826,1715313033175,-1216.41049314,0.00020896,2]
[326754827,1715313033185,-1216.41049314,0.00020896,2]
[326754828,1715313033194,-1216.41049314,0.00020896,2]
[326754829,1715313033204,-1216.41049314,0.00020896,2]
[326754830,1715313033214,-1216.41049314,0.00020896,2]
[326754831,1715313033224,-1216.41049314,0.00020896,2]
[326754832,1715313033233,-1216.41049314,0.00020896,2]
[326754833,1715313033244,-1216.41049314,0.00020896,2]
[326754834,1715313033254,-1216.41049314,0.00020896,2]
[326754835,1715313033263,-1216.41049314,0.00020896,2]
[326754836,1715313033272,-1216.41049314,0.00020896,2]
[326754837,1715313033282,-1216.41049314,0.00020896,2]
[326754838,1715313033291,-1216.41049314,0.00020896,2]
[326754839,1715313033301,-1216.41049314,0.00020896,2]
[326754840,1715313033310,-1216.41049314,0.00020896,2]
[326754841,1715313033320,-1216.41049314,0.00020896,2]
[326754842,1715313033330,-1216.41049314,0.00020896,2]
[326754843,1715313033340,-1216.41049314,0.00020896,2]
[326754844,1715313033351,-1216.41049314,0.00020896,2]
[326754845,1715313033360,-1216.41049314,0.00020896,2]
[326754846,1715313033369,-1216.41049314,0.00020896,2]
[326754847,1715313033379,-644.32718518,0.00020896,2]
[326754877,1715313038684,-500.0,0.00020895,2]
[326754878,1715313038693,-500.0,0.00020895,2]
[326754879,1715313038702,-331.94426912,0.00020895,2]
[326754880,1715313038713,-168.05573088,0.00020895,2]
[326754881,1715313038722,-500.0,0.00020895,2]
[326754882,1715313038731,-500.0,0.00020895,2]
[326754883,1715313038741,-500.0,0.00020895,2]
[326754885,1715313038752,-500.0,0.00020895,2]
[326754887,1715313038761,-500.0,0.00020895,2]
[326754889,1715313038770,-75.22559352,0.00020895,2]
[326754974,1715313044047,-3549.3569314,0.00020789,2]
[326754991,1715313158846,154.7215013,0.000137,2]
[326754992,1715313175703,492.04342234,9.999e-05,2]
[326754993,1715313176107,1681.2123987,0.00015,2]
[326754994,1715313356399,564.55666031,9.999e-05,2]
[326754995,1715313473293,154.7215013,9.999e-05,2]
[326754996,1715313549392,1400.60904381,9.999e-05,2]
[326755000,1715313889861,16183.29141535,9.999e-05,2]
[326755001,1715314002146,-168.3422661,0.00019441,2]
[326755002,1715314002177,-1936.38342318,0.00019564,2]
[326755003,1715314158463,2397.03538122,0.00015,2]
[326755009,1715314231815,-2104.72344677,0.0001877,2]
[326755010,1715314231825,-382.2096135,0.00018771,2]
[326755011,1715314231834,-15132.80547946,0.00019357,2]
[326755012,1715314231842,-435.06554564,0.00019358,2]
[326755013,1715314231851,-24900.0,0.0001936,2]
[326755014,1715314231862,-767.43242604,0.00019464,2]
[326755020,1715314231943,-3000.0,0.00019565,2]
[326755022,1715314231952,-238.852451,0.00019715,2]
[326755024,1715314231962,-172.31561643,0.00019746,2]
[326755026,1715314231971,-901.50364212,0.00019846,2]
[326755028,1715314231981,-156.77709324,0.000207,2]
[326755029,1715314231990,-156.77709323,0.000207,2]
[326755031,1715314231999,-156.77709323,0.00020702,2]
[326755033,1715314232008,-172.31561642,0.00020802,2]
[326755035,1715314232017,-1018.24453287,0.0002089,2]
[326755037,1715314232026,-242.23635632,0.00020891,4]
[326755039,1715314232035,-3068.51153378,0.00020891,2]
[326755041,1715314232045,-564.5564936,0.00020891,2]
[326755043,1715314232054,-155.14059389,0.00020891,2]
[326755045,1715314232063,-580.77377881,0.00020892,2]
[326755047,1715314232072,-459.18298254,0.00020892,2]
[326755049,1715314232080,-500.0,0.00020892,2]
[326755051,1715314232089,-500.0,0.00020892,2]
[326755052,1715314232098,-500.0,0.00020892,2]
[326755053,1715314232108,-500.0,0.00020892,2]
[326755054,1715314232118,-500.0,0.00020892,2]
[326755055,1715314232127,-500.0,0.00020892,2]
[326755057,1715314232137,-500.0,0.00020892,2]
[326755058,1715314232146,-500.0,0.00020892,2]
[326755059,1715314232155,-500.0,0.00020892,2]
[326755060,1715314232164,-500.0,0.00020892,2]
[326755061,1715314232173,-500.0,0.00020892,2]
[326755062,1715314232182,-500.0,0.00020892,2]
[326755063,1715314232191,-85.00380076,0.00020892,2]
[326755201,1715314240306,-414.99619924,0.00020892,2]
[326755202,1715314240315,-500.0,0.00020892,2]
[326755203,1715314240325,-500.0,0.00020892,2]
[326755204,1715314240334,-500.0,0.00020892,2]
[326755205,1715314240344,-500.0,0.00020892,2]
[326755206,1715314240353,-500.0,0.00020892,2]
[326755207,1715314240362,-500.0,0.00020892,2]
[326755208,1715314240373,-500.0,0.00020892,2]
[326755209,1715314240382,-330.34116063,0.00020892,2]
[326755210,1715314240390,-500.0,0.00020892,2]
[326755211,1715314240399,-500.0,0.00020892,2]
[326755212,1715314240408,-500.0,0.00020892,2]
[326755213,1715314240417,-500.0,0.00020892,2]
[326755214,1715314240427,-500.0,0.00020892,2]
[326755215,1715314240436,-500.0,0.00020892,2]
[326755216,1715314240445,-500.0,0.00020892,2]
[326755217,1715314240454,-500.0,0.00020892,2]
[326755218,1715314240462,-500.0,0.00020892,2]
[326755219,1715314240470,-500.0,0.00020892,2]
[326755220,1715314240479,-500.0,0.00020892,2]
[326755221,1715314240488,-500.0,0.00020892,2]
[326755222,1715314240498,-500.0,0.00020892,2]
[326755223,1715314240507,-500.0,0.00020892,2]
[326755224,1715314240516,-500.0,0.00020892,2]
[326755225,1715314240525,-500.0,0.00020892,2]
[326755226,1715314240534,-500.0,0.00020892,2]
[326755227,1715314240543,-500.0,0.00020892,2]
[326755228,1715314240552,-500.0,0.00020892,2]
[326755229,1715314240561,-500.0,0.00020892,2]
[326755230,1715314240571,-500.0,0.00020892,2]
[326755231,1715314240580,-500.0,0.00020892,2]
[326755232,1715314240589,-500.0,0.00020892,2]
[326755233,1715314240599,-500.0,0.00020892,2]
[326755234,1715314240607,-500.0,0.00020892,2]
[326755235,1715314240618,-500.0,0.00020892,2]
[326755236,1715314240627,-500.0,0.00020892,2]
[326755237,1715314240636,-500.0,0.00020892,2]
[326755238,1715314240645,-500.0,0.00020892,2]
[326755239,1715314240656,-500.0,0.00020892,2]
[326755240,1715314240667,-500.0,0.00020892,2]
[326755241,1715314240677,-500.0,0.00020892,2]
[326755242,1715314240686,-500.0,0.00020892,2]
[326755243,1715314240695,-500.0,0.00020892,2]
[326755244,1715314240705,-500.0,0.00020892,2]
[326755245,1715314240714,-500.0,0.00020892,2]
[326755246,1715314240724,-500.0,0.00020892,2]
[326755247,1715314240735,-500.0,0.00020892,2]
[326755248,1715314240744,-500.0,0.00020892,2]
[326755249,1715314240753,-500.0,0.00020892,2]
[326755250,1715314240764,-500.0,0.00020892,2]
[326755251,1715314240774,-500.0,0.00020892,2]
[326755252,1715314240847,-500.0,0.00020892,2]
[326755253,1715314240857,-500.0,0.00020892,2]
[326755254,1715314240868,-550.00000001,0.00020892,2]
[326755255,1715314240877,-500.0,0.00020892,2]
[326755256,1715314240886,-500.0,0.00020892,2]
[326755257,1715314240895,-500.0,0.00020892,2]
[326755258,1715314240904,-500.0,0.00020892,2]
[326755259,1715314240913,-500.0,0.00020892,2]
[326755260,1715314240923,-500.0,0.00020892,2]
[326755261,1715314240931,-500.0,0.00020892,2]
[326755262,1715314240941,-500.0,0.00020892,2]
[326755263,1715314240950,-500.0,0.00020892,2]
[326755264,1715314240959,-33595.90345901,0.00020893,2]
[326755272,1715314243062,-4933.4543,0.00020893,2]
[326755284,1715314281620,1714.0988962,9.999e-05,2]
[326755291,1715314596291,174.164322,0.0001589,2]
[326755349,1715315195281,2630.824007,0.00017758,2]
[326755456,1715315438047,-2104.72344677,0.00018379,2]
[326755458,1715315438057,-7884.1916548,0.0001838,2]
[326755460,1715315438066,-1301.8204998,0.00018388,2]
[326755462,1715315438075,-24900.0,0.00018446,2]
[326755464,1715315438084,-2932.4287872,0.00018535,2]
[326755466,1715315438092,-487.411568,0.00019048,2]
[326755468,1715315438102,-200.0,0.0002,2]
[326755470,1715315438110,-2454.45,0.00020881,3]
[326755472,1715315438120,-2045.38,0.00020881,3]
[326755474,1715315438129,-1022.69,0.00020881,3]
[326755476,1715315438139,-511.34,0.00020881,3]
[326755479,1715315438149,-255.67,0.00020881,3]
[326755481,1715315438158,-255.67,0.00020881,3]
[326755482,1715315438167,-500.0,0.0002089,2]
[326755484,1715315438176,-500.0,0.0002089,2]
[326755486,1715315438185,-500.0,0.0002089,2]
[326755488,1715315438194,-446.74355904,0.0002089,2]
[326755490,1715315438204,-500.0,0.0002089,2]
[326755493,1715315438214,-500.0,0.0002089,2]
[326755494,1715315438223,-500.0,0.0002089,2]
[326755496,1715315438233,-500.0,0.0002089,2]
[326755499,1715315438242,-500.0,0.0002089,2]
[326755500,1715315438250,-500.0,0.0002089,2]
[326755503,1715315438259,-500.0,0.0002089,2]
[326755505,1715315438268,-500.0,0.0002089,2]
[326755507,1715315438278,-488.03411606,0.0002089,2]
[326755508,1715315438286,-500.0,0.0002089,2]
[326755510,1715315438295,-500.0,0.0002089,2]
[326755512,1715315438304,-500.0,0.0002089,2]
[326755514,1715315438313,-500.0,0.0002089,2]
[326755516,1715315438325,-500.0,0.0002089,2]
[326755518,1715315438335,-500.0,0.0002089,2]
[326755520,1715315438344,-500.0,0.0002089,2]
[326755522,1715315438353,-500.0,0.0002089,2]
[326755524,1715315438362,-500.0,0.0002089,2]
[326755526,1715315438371,-500.0,0.0002089,2]
[326755528,1715315438380,-500.0,0.0002089,2]
[326755531,1715315438390,-500.0,0.0002089,2]
[326755533,1715315438399,-500.0,0.0002089,2]
[326755542,1715315438476,-500.0,0.0002089,2]
[326755544,1715315438485,-1000.0,0.0002089,3]
[326755546,1715315438495,-36856.81596091,0.00020891,2]
[326755910,1715315443375,-18555.90748034,0.00020891,2]
[326755911,1715315443385,-21823.98133262,0.00020893,2]
[326755912,1715315443396,-188.78790213,0.00020898,2]
[326755913,1715315443405,-168.22441991,0.00020898,2]
[326755915,1715315443414,-254.74795696,0.00020899,2]
[326755916,1715315443423,-1096.31345926,0.000209,2]
[326755917,1715315443433,-894.51331095,0.00020901,2]
[326755918,1715315443442,-155.8153617,0.00020902,2]
[326755919,1715315443451,-528.3157185,0.00020911,2]
[326755920,1715315443460,-2165.69835613,0.00020911,2]
[326755921,1715315443470,-411.16621614,0.00020911,2]
[326755922,1715315443479,-2309.42996955,0.00020913,2]
[326755923,1715315443488,-243.153,0.00020913,2]
[326755924,1715315443498,-243.153,0.00020913,2]
[326755925,1715315443508,-243.153,0.00020913,2]
[326755926,1715315443517,-243.153,0.00020913,2]
[326755927,1715315443526,-243.153,0.00020913,2]
[326755928,1715315443535,-243.153,0.00020913,2]
[326755929,1715315443544,-243.153,0.00020913,2]
[326755930,1715315443553,-243.153,0.00020913,2]
[326755931,1715315443562,-243.153,0.00020913,2]
[326755932,1715315443571,-243.153,0.00020913,2]
[326755933,1715315443581,-243.153,0.00020913,2]
[326755934,1715315443590,-243.153,0.00020913,2]
[326755935,1715315443599,-243.153,0.00020913,2]
[326755936,1715315443608,-243.153,0.00020913,2]
[326755937,1715315443618,-151.0,0.00020913,2]
[326755938,1715315443627,-151.0,0.00020913,2]
[326755939,1715315443636,-243.153,0.00020913,2]
[326755940,1715315443646,-151.0,0.00020913,2]
[326755941,1715315443655,-243.153,0.00020913,2]
[326755942,1715315443664,-151.0,0.00020913,2]
[326755943,1715315443673,-151.0,0.00020913,2]
[326755944,1715315443682,-151.0,0.00020913,2]
[326755945,1715315443691,-151.0,0.00020913,2]
[326755946,1715315443701,-151.0,0.00020913,2]
[326755947,1715315443710,-158.236448,0.00020913,2]
[326755949,1715315443719,-212.374598,0.00020913,2]
[326755950,1715315443728,-212.374598,0.00020913,2]
[326755951,1715315443737,-212.374598,0.00020913,2]
[326755953,1715315443746,-212.374598,0.00020913,2]
[326755954,1715315443755,-212.374598,0.00020913,2]
[326755956,1715315443765,-212.374598,0.00020913,2]
[326755957,1715315443774,-212.374598,0.00020913,2]
[326755958,1715315443783,-212.374598,0.00020913,2]
[326755959,1715315443792,-212.374598,0.00020913,2]
[326755960,1715315443801,-212.374598,0.00020913,2]
[326755961,1715315443811,-212.374598,0.00020913,2]
[326755962,1715315443820,-212.374598,0.00020913,2]
[326755963,1715315443829,-212.374598,0.00020913,2]
[326755964,1715315443838,-212.374598,0.00020913,2]
[326755965,1715315443846,-212.374598,0.00020913,2]
[326755966,1715315443855,-212.374598,0.00020913,2]
[326755967,1715315443865,-151.0,0.00020913,2]
[326755968,1715315443874,-151.0,0.00020913,2]
[326755969,1715315443883,-151.0,0.00020913,2]